[Event "GER-ch Youth-U12 2024"]
[Site "Willingen"]
[Date "2024.05.21"]
[Round "4"]
[White "Grabowski, Joshua"]
[Black "Doeding, Alexander"]
[Result "0-1"]
[ECO "C42"]
[WhiteElo "1532"]
[BlackElo "1633"]
[Annotator "NA RC"]
[PlyCount "100"]
[EventDate "2022.06.05"]
[EventType "swiss"]
[EventRounds "9"]
[EventCountry "GER"]
[SourceTitle "playchess.com"]
[Source "ChessBase"]
[SourceQuality "1"]
[TimeControl "40/4500+30:900+30"]

1. e4 {[%emt 0:00:00]} e5 {[%emt 0:00:00]} 2. Nf3 {[%emt 0:00:00]} Nf6 {[%emt 0:00:00]} 3. Nxe5 {[%emt 0:00:00]} Nc6 {[%emt 0:00:00]} 4. Nxc6 {[%emt 0:00:00]} dxc6 {[%emt 0:00:00]} 5. Nc3 {[%emt 0:00:00]} Bc5 {[%emt 0:00:00]} 6. Be2 {[%emt 0:00:00]} Qd4 {[%emt 0:00:00]} 7. O-O {[%emt 0:00:00]} Nxe4 {[%emt 0:00:00]} 8. Nxe4 {[%emt 0:00:00]} Qxe4 {[%emt 0:00:00]} 9. Bf3 {[%emt 0:00:00]} Qg6 {[%emt 0:00:00]} 10. Re1+ {[%emt 0:00:00]} Be6 {[%emt 0:00:00]} 11. d4 {[%emt 0:00:00]} O-O-O {[%emt 0:00:00]} 12. c3 {[%emt 0:00:00]} Bd6 {[%emt 0:00:00]} 13. b4 {[%emt 0:00:24]} Kb8 {[%emt 0:00:00]} 14. Be4 {[%emt 0:02:01]} Qf6 {[%emt 0:00:00]} 15. Qh5 {[%emt 0:03:31]} h6 {[%emt 0:01:26]} 16. Qa5 {[%emt 0:01:41]} Rde8 {[%emt 0:09:06]} 17. Bd2 {[%emt 0:03:13]} Bc4 {[%emt 0:04:00]} 18. a4 {[%emt 0:01:48]} g6 {[%emt 0:27:59]} 19. b5 {[%emt 0:03:18]} c5 {[%emt 0:00:41]} 20. dxc5 {[%emt 0:01:29]} Bxc5 {[%emt 0:00:48]} 21. Be3 {[%emt 0:01:44]} b6 {[%emt 0:14:59]} 22. Qa6 {[%emt 0:00:22]} Rxe4 {[%emt 0:00:10]} 23. Bxc5 {[%emt 0:00:13]} Qxc3 {[%emt 0:00:43]} 24. Rec1 {[%emt 0:01:06]} Rhe8 {[%emt 0:03:17]} 25. Be3 {[%emt 0:00:26]} Rxe3 {[%emt 0:01:53]} 26. fxe3 {[%emt 0:00:33]} Qxe3+ {[%emt 0:00:08]} 27. Kh1 {[%emt 0:00:14]} Bd5 {[%emt 0:00:11]} 28. a5 {[%emt 0:00:52]} Bb7 {[%emt 0:00:47]} 29. axb6 {[%emt 0:01:50]} Bxa6 {[%emt 0:00:25]} 30. bxa7+ {[%emt 0:00:26]} Ka8 {[%emt 0:02:20]} 31. bxa6 {[%emt 0:00:10]} c5 {[%emt 0:00:40]} 32. h3 {[%emt 0:00:55]} Kxa7 {[%emt 0:00:13]} 33. Rc2 {[%emt 0:00:57]} Qg3 {[%emt 0:00:50]} 34. Rxc5 {[%emt 0:01:16]} Re1+ {[%emt 0:00:29]} 35. Rxe1 {[%emt 0:00:06]} Qxe1+ {[%emt 0:00:09]} 36. Kh2 {[%emt 0:00:01]} Kxa6 {[%emt 0:00:10]} 37. Rc2 {[%emt 0:00:50]} Kb5 {[%emt 0:01:21]} 38. g3 {[%emt 0:00:09]} Qe4 {[%emt 0:00:21]} 39. Rf2 {[%emt 0:00:19]} f5 {[%emt 0:00:57]} 40. h4 {[%emt 0:00:12]} Kc5 {[%emt 0:00:31]} 41. Kg1 {[%emt 0:15:37]} g5 {[%emt 0:15:55]} 42. hxg5 {[%emt 0:00:06]} hxg5 {[%emt 0:00:14]} 43. Kh2 {[%emt 0:00:10]} Kd5 {[%emt 0:01:22]} 44. Kg1 {[%emt 0:00:25]} f4 {[%emt 0:00:24]} 45. gxf4 {[%emt 0:00:32]} gxf4 {[%emt 0:00:14]} 46. Kf1 {[%emt 0:00:13]} Qh1+ {[%emt 0:00:43]} 47. Ke2 {[%emt 0:00:06]} Ke4 {[%emt 0:00:12]} 48. Rf1 {[%emt 0:00:36]} f3+ {[%emt 0:00:20]} 49. Kf2 {[%emt 0:00:15]} Qg2+ {[%emt 0:00:09]} 50. Ke1 {[%emt 0:00:18]} Qe2# {[%emt 0:00:04]} 0-1

[Event "GER-ch Youth-U12 2024"]
[Site "Willingen"]
[Date "2024.05.21"]
[Round "4"]
[White "Kaza, Charith"]
[Black "Sun, Christopher"]
[Result "0-1"]
[ECO "C01"]
[WhiteElo "1503"]
[BlackElo "1714"]
[Annotator "NA RC"]
[PlyCount "76"]
[EventDate "2022.06.05"]
[EventType "swiss"]
[EventRounds "9"]
[EventCountry "GER"]
[SourceTitle "playchess.com"]
[Source "ChessBase"]
[SourceQuality "1"]
[TimeControl "40/4500+30:900+30"]

1. e4 {[%emt 0:00:00]} e6 {[%emt 0:00:00]} 2. d4 {[%emt 0:00:00]} d5 {[%emt 0:00:00]} 3. exd5 {[%emt 0:00:00]} exd5 {[%emt 0:00:00]} 4. Qf3 {[%emt 0:00:00]} Nf6 {[%emt 0:00:00]} 5. h3 {[%emt 0:00:00]} h6 {[%emt 0:00:00]} 6. Bd3 {[%emt 0:00:00]} Bd6 {[%emt 0:00:00]} 7. Bf4 {[%emt 0:00:00]} O-O {[%emt 0:00:00]} 8. Nd2 {[%emt 0:00:00]} Nc6 {[%emt 0:02:04]} 9. c3 {[%emt 0:00:00]} Re8+ {[%emt 0:06:06]} 10. Ne2 {[%emt 0:00:00]} b6 {[%emt 0:01:21]} 11. O-O-O {[%emt 0:00:00]} Bb7 {[%emt 0:02:28]} 12. g4 {[%emt 0:00:00]} Bxf4 {[%emt 0:05:15]} 13. Qxf4 {[%emt 0:00:00]} Qd6 {[%emt 0:03:09]} 14. Qf3 {[%emt 0:00:00]} Nd8 {[%emt 0:14:24]} 15. h4 {[%emt 0:00:00]} Ne4 {[%emt 0:01:59]} 16. Qg2 {[%emt 0:03:18]} c5 {[%emt 0:07:14]} 17. f3 {[%emt 0:00:33]} Nxd2 {[%emt 0:08:35]} 18. Rxd2 {[%emt 0:00:38]} Ne6 {[%emt 0:00:42]} 19. Bc2 {[%emt 0:04:21]} Nf4 {[%emt 0:06:39]} 20. Nxf4 {[%emt 0:00:41]} Qxf4 {[%emt 0:00:34]} 21. Kb1 {[%emt 0:02:02]} Re3 {[%emt 0:03:56]} 22. Rf1 {[%emt 0:00:28]} Rae8 {[%emt 0:03:58]} 23. Bd1 {[%emt 0:03:53]} Ba6 {[%emt 0:01:44]} 24. Rg1 {[%emt 0:00:34]} Bd3+ {[%emt 0:02:08]} 25. Ka1 {[%emt 0:01:28]} Re1 {[%emt 0:02:16]} 26. Rxe1 {[%emt 0:00:41]} Rxe1 {[%emt 0:00:16]} 27. a3 {[%emt 0:01:58]} Bc4 {[%emt 0:02:12]} 28. Kb1 {[%emt 0:01:58]} Bb3 {[%emt 0:00:20]} 29. Qf2 {[%emt 0:07:53]} Rxd1+ {[%emt 0:00:49]} 30. Rxd1 {[%emt 0:00:17]} Bxd1 {[%emt 0:00:04]} 31. dxc5 {[%emt 0:00:51]} bxc5 {[%emt 0:00:41]} 32. Qxc5 {[%emt 0:00:09]} Qxf3 {[%emt 0:02:41]} 33. Qxa7 {[%emt 0:00:21]} Qd3+ {[%emt 0:00:30]} 34. Ka1 {[%emt 0:00:21]} Qd2 {[%emt 0:02:55]} 35. Qd7 {[%emt 0:01:06]} Bc2 {[%emt 0:02:23]} 36. Qxd5 {[%emt 0:03:14]} Qxd5 {[%emt 0:00:36]} 37. c4 {[%emt 0:00:04]} Qh1+ {[%emt 0:00:05]} 38. Ka2 {[%emt 0:00:06]} Qb1# {[%emt 0:00:36]} 0-1

[Event "GER-ch Youth-U12 2024"]
[Site "Willingen"]
[Date "2024.05.21"]
[Round "4"]
[White "Fass, Ben"]
[Black "Yozgyur, Ediz"]
[Result "0-1"]
[ECO "B22"]
[WhiteElo "1027"]
[BlackElo "1789"]
[Annotator "NA RC"]
[PlyCount "108"]
[EventDate "2022.06.05"]
[EventType "swiss"]
[EventRounds "9"]
[EventCountry "GER"]
[SourceTitle "playchess.com"]
[Source "ChessBase"]
[SourceQuality "1"]
[TimeControl "40/4500+30:900+30"]

1. e4 {[%emt 0:00:00]} c5 {[%emt 0:00:00]} 2. c3 {[%emt 0:00:00]} d5 {[%emt 0:00:00]} 3. exd5 {[%emt 0:00:00]} Qxd5 {[%emt 0:00:00]} 4. d4 {[%emt 0:00:00]} g6 {[%emt 0:00:00]} 5. Be3 {[%emt 0:00:00]} cxd4 {[%emt 0:00:00]} 6. Bxd4 {[%emt 0:00:00]} e5 {[%emt 0:00:00]} 7. Qe2 {[%emt 0:00:00]} Nc6 {[%emt 0:03:08]} 8. Nf3 {[%emt 0:00:00]} Bg7 {[%emt 0:04:45]} 9. h3 {[%emt 0:00:00]} Nf6 {[%emt 0:02:21]} 10. Bxe5 {[%emt 0:00:00]} Nxe5 {[%emt 0:01:24]} 11. Nxe5 {[%emt 0:02:04]} O-O {[%emt 0:00:32]} 12. c4 {[%emt 0:01:16]} Qa5+ {[%emt 0:00:58]} 13. Nc3 {[%emt 0:00:53]} Re8 {[%emt 0:01:02]} 14. f4 {[%emt 0:02:34]} Nd7 {[%emt 0:01:47]} 15. O-O-O {[%emt 0:00:32]} Nxe5 {[%emt 0:02:06]} 16. fxe5 {[%emt 0:03:43]} Bxe5 {[%emt 0:14:06]} 17. Qe3 {[%emt 0:08:43]} Be6 {[%emt 0:11:41]} 18. Be2 {[%emt 0:03:38]} Bxc3 {[%emt 0:03:22]} 19. Qxc3 {[%emt 0:02:46]} Qxa2 {[%emt 0:00:39]} 20. Qa3 {[%emt 0:00:42]} Bxc4 {[%emt 0:00:32]} 21. Bxc4 {[%emt 0:01:47]} Qxc4+ {[%emt 0:00:07]} 22. Qc3 {[%emt 0:01:04]} Qf4+ {[%emt 0:00:19]} 23. Qd2 {[%emt 0:00:39]} Rac8+ {[%emt 0:00:17]} 24. Kb1 {[%emt 0:00:25]} Qf5+ {[%emt 0:01:00]} 25. Qd3 {[%emt 0:00:25]} Qxd3+ {[%emt 0:00:27]} 26. Rxd3 {[%emt 0:00:15]} Re2 {[%emt 0:00:03]} 27. Rg1 {[%emt 0:00:31]} Rcc2 {[%emt 0:00:08]} 28. Rb3 {[%emt 0:00:21]} b6 {[%emt 0:00:10]} 29. g4 {[%emt 0:00:20]} Rh2 {[%emt 0:00:32]} 30. Rd1 {[%emt 0:00:20]} Rcd2 {[%emt 0:00:22]} 31. Rc1 {[%emt 0:00:33]} Rd7 {[%emt 0:00:31]} 32. Rbc3 {[%emt 0:00:37]} a6 {[%emt 0:00:56]} 33. R1c2 {[%emt 0:01:31]} Rxc2 {[%emt 0:00:19]} 34. Kxc2 {[%emt 0:00:11]} Rd6 {[%emt 0:00:25]} 35. Rc8+ {[%emt 0:00:27]} Kg7 {[%emt 0:00:05]} 36. Kc3 {[%emt 0:00:26]} Rd5 {[%emt 0:00:28]} 37. Rc6 {[%emt 0:00:21]} Rc5+ {[%emt 0:00:19]} 38. Rxc5 {[%emt 0:00:19]} bxc5 {[%emt 0:00:03]} 39. Kc4 {[%emt 0:00:09]} f5 {[%emt 0:00:05]} 40. Kxc5 {[%emt 0:00:13]} f4 {[%emt 0:00:06]} 41. Kd4 {[%emt 0:15:15]} g5 {[%emt 0:15:07]} 42. Ke4 {[%emt 0:00:39]} Kf6 {[%emt 0:00:15]} 43. h4 {[%emt 0:00:35]} h6 {[%emt 0:00:11]} 44. hxg5+ {[%emt 0:01:38]} hxg5 {[%emt 0:00:12]} 45. Kf3 {[%emt 0:00:10]} Ke5 {[%emt 0:00:06]} 46. b3 {[%emt 0:01:07]} a5 {[%emt 0:00:05]} 47. Kf2 {[%emt 0:00:53]} Ke4 {[%emt 0:00:06]} 48. Ke2 {[%emt 0:00:32]} f3+ {[%emt 0:00:08]} 49. Kf2 {[%emt 0:00:17]} Kf4 {[%emt 0:00:05]} 50. Kf1 {[%emt 0:00:21]} Kg3 {[%emt 0:00:15]} 51. Kg1 {[%emt 0:00:12]} f2+ {[%emt 0:00:19]} 52. Kf1 {[%emt 0:00:13]} Kf3 {[%emt 0:00:06]} 53. b4 {[%emt 0:00:12]} a4 {[%emt 0:00:04]} 54. b5 {[%emt 0:00:15]} a3 {[%emt 0:00:05]} 0-1

[Event "GER-ch Youth-U12 2024"]
[Site "Willingen"]
[Date "2024.05.21"]
[Round "4"]
[White "Schellinger, Florian"]
[Black "Hagn, Tobias"]
[Result "0-1"]
[ECO "C77"]
[WhiteElo "863"]
[BlackElo "1631"]
[Annotator "NA RC"]
[PlyCount "52"]
[EventDate "2022.06.05"]
[EventType "swiss"]
[EventRounds "9"]
[EventCountry "GER"]
[SourceTitle "playchess.com"]
[Source "ChessBase"]
[SourceQuality "1"]
[TimeControl "40/4500+30:900+30"]

1. e4 {[%emt 0:00:00]} e5 {[%emt 0:00:00]} 2. Nf3 {[%emt 0:00:00]} Nc6 {[%emt 0:00:00]} 3. Bb5 {[%emt 0:00:00]} a6 {[%emt 0:00:00]} 4. Ba4 {[%emt 0:00:00]} Bc5 {[%emt 0:00:00]} 5. Nc3 {[%emt 0:00:00]} b5 {[%emt 0:00:00]} 6. Bb3 {[%emt 0:00:00]} Nf6 {[%emt 0:00:00]} 7. d3 {[%emt 0:00:00]} h6 {[%emt 0:00:00]} 8. Bd5 {[%emt 0:00:00]} Nxd5 {[%emt 0:00:00]} 9. Nxd5 {[%emt 0:00:00]} d6 {[%emt 0:00:00]} 10. h3 {[%emt 0:00:00]} O-O {[%emt 0:00:00]} 11. O-O {[%emt 0:00:00]} f5 {[%emt 0:00:00]} 12. exf5 {[%emt 0:00:00]} Bxf5 {[%emt 0:00:00]} 13. Nd2 {[%emt 0:00:00]} Qh4 {[%emt 0:00:47]} 14. Qf3 {[%emt 0:00:00]} Nd4 {[%emt 0:01:49]} 15. Qe3 {[%emt 0:00:00]} Nxc2 {[%emt 0:01:29]} 16. Qe2 {[%emt 0:00:00]} Nxa1 {[%emt 0:01:16]} 17. Nf3 {[%emt 0:00:00]} Qd8 {[%emt 0:04:59]} 18. Ne1 {[%emt 0:00:00]} Be6 {[%emt 0:02:38]} 19. Nc3 {[%emt 0:00:00]} Bb6 {[%emt 0:04:36]} 20. Qh5 {[%emt 0:00:00]} Rf5 {[%emt 0:01:41]} 21. Qg6 {[%emt 0:00:00]} Qf6 {[%emt 0:03:25]} 22. Qg4 {[%emt 0:00:00]} Rxf2 {[%emt 0:00:48]} 23. Qg3 {[%emt 0:00:00]} Rxf1+ {[%emt 0:00:17]} 24. Kh2 {[%emt 0:00:00]} Rh1+ {[%emt 0:00:07]} 25. Kxh1 {[%emt 0:00:00]} Qf1+ {[%emt 0:00:04]} 26. Kh2 {[%emt 0:00:00]} Qg1# {[%emt 0:00:05]} 0-1

[Event "GER-ch Youth-U12 2024"]
[Site "Willingen"]
[Date "2024.05.22"]
[Round "5"]
[White "Belin, Anton"]
[Black "Shevchenko, Igor"]
[Result "1-0"]
[ECO "B10"]
[WhiteElo "1948"]
[BlackElo "1758"]
[Annotator "RC"]
[PlyCount "43"]
[EventDate "2022.06.05"]
[EventType "swiss"]
[EventRounds "9"]
[EventCountry "GER"]
[SourceTitle "playchess.com"]
[Source "ChessBase"]
[SourceQuality "1"]
[TimeControl "40/4500+30:900+30"]

1. e4 {[%emt 0:00:00]} c6 {[%emt 0:00:00]} 2. Nf3 {[%emt 0:00:00]} d5 {[%emt 0:00:00]} 3. exd5 {[%emt 0:00:00]} cxd5 {[%emt 0:00:00]} 4. Ne5 {[%emt 0:00:00]} Nc6 {[%emt 0:00:00]} 5. Bb5 {[%emt 0:00:00]} Bd7 {[%emt 0:00:00]} 6. Bxc6 {[%emt 0:00:00]} bxc6 {[%emt 0:03:46]} 7. d4 {[%emt 0:00:00]} Nf6 {[%emt 0:06:28]} 8. O-O {[%emt 0:00:00]} e6 {[%emt 0:07:46]} 9. c3 {[%emt 0:00:00]} Be7 {[%emt 0:03:29]} 10. Re1 {[%emt 0:00:00]} h6 {[%emt 0:07:02]} 11. Nd2 {[%emt 0:00:00]} Qb6 {[%emt 0:03:05]} 12. Ndf3 {[%emt 0:02:20]} Bc8 {[%emt 0:09:55]} 13. Qc2 {[%emt 0:05:17]} O-O {[%emt 0:02:04]} 14. h3 {[%emt 0:03:05]} Rd8 {[%emt 0:02:41]} 15. Bf4 {[%emt 0:02:53]} Bb7 {[%emt 0:02:26]} 16. Re3 {[%emt 0:02:40]} c5 {[%emt 0:02:08]} 17. Nxf7 {[%emt 0:03:51]} Kxf7 {[%emt 0:03:40]} 18. Ne5+ {[%emt 0:00:18]} Kg8 {[%emt 0:00:06]} 19. Qg6 {[%emt 0:00:49]} Bf8 {[%emt 0:08:24]} 20. Rg3 {[%emt 0:01:02]} Ne4 {[%emt 0:05:48]} 21. Qf7+ {[%emt 0:00:27]} Kh7 {[%emt 0:00:15]} 22. Rg6 {[%emt 0:00:19]} 1-0

[Event "GER-ch Youth-U12 2024"]
[Site "Willingen"]
[Date "2024.05.22"]
[Round "5"]
[White "Li, Yunqi"]
[Black "Zhang, Yibo"]
[Result "1/2-1/2"]
[ECO "A85"]
[WhiteElo "1940"]
[BlackElo "1988"]
[Annotator "NA RC"]
[PlyCount "98"]
[EventDate "2022.06.05"]
[EventType "swiss"]
[EventRounds "9"]
[EventCountry "GER"]
[SourceTitle "playchess.com"]
[Source "ChessBase"]
[SourceQuality "1"]
[TimeControl "40/4500+30:900+30"]

1. d4 {[%emt 0:00:00]} d5 {[%emt 0:00:00]} 2. c4 {[%emt 0:00:00]} e6 {[%emt 0:00:00]} 3. Nc3 {[%emt 0:00:00]} c6 {[%emt 0:00:00]} 4. e3 {[%emt 0:00:00]} Bd6 {[%emt 0:00:00]} 5. Nf3 {[%emt 0:00:00]} f5 {[%emt 0:00:00]} 6. Ne5 {[%emt 0:00:00]} Nf6 {[%emt 0:00:00]} 7. Qc2 {[%emt 0:00:00]} O-O {[%emt 0:00:00]} 8. Bd3 {[%emt 0:00:00]} Nbd7 {[%emt 0:00:00]} 9. f4 {[%emt 0:00:00]} Ne4 {[%emt 0:02:35]} 10. O-O {[%emt 0:00:00]} Ndf6 {[%emt 0:16:08] A85: Dutch Defence: 2 c4 Nf6 3 Nc3.} 11. Bd2 {[%emt 0:00:42]} Qe8 {[%emt 0:03:38]} 12. Be2 {[%emt 0:01:03]} b6 {[%emt 0:03:49]} 13. b3 {[%emt 0:02:25]} Bb7 {[%emt 0:01:43]} 14. Bf3 {[%emt 0:05:16]} Rc8 {[%emt 0:02:33]} 15. Nxe4 {[%emt 0:01:52]} Nxe4 {[%emt 0:01:47]} 16. Bc1 {[%emt 0:02:49]} Qe7 {[%emt 0:06:29]} 17. Bb2 {[%emt 0:00:25]} c5 {[%emt 0:02:16]} 18. Rac1 {[%emt 0:06:35]} cxd4 {[%emt 0:03:47]} 19. exd4 {[%emt 0:05:24]} dxc4 {[%emt 0:16:28]} 20. bxc4 {[%emt 0:00:27]} Nf6 {[%emt 0:01:11]} 21. Qe2 {[%emt 0:06:24]} Bxf3 {[%emt 0:04:00]} 22. Qxf3 {[%emt 0:01:35]} Ne4 {[%emt 0:00:11]} 23. Rfd1 {[%emt 0:01:07]} Rfd8 {[%emt 0:04:14]} 24. h3 {[%emt 0:02:24]} Qh4 {[%emt 0:02:51]} 25. Bc3 {[%emt 0:06:56] [#]} (25. Rc2 $11) 25... Bxe5 {[%emt 0:07:33]} (25... g5 $1 $17 26. fxg5 Qxg5) 26. fxe5 {[%emt 0:00:55]} Qe7 {[%emt 0:00:44]} 27. Bb2 {[%emt 0:03:24]} Qb7 {[%emt 0:01:46]} 28. Qb3 {[%emt 0:02:47]} h6 {[%emt 0:00:29]} 29. a4 {[%emt 0:03:02]} Rc6 {[%emt 0:01:27]} 30. d5 {[%emt 0:16:19]} exd5 {[%emt 0:02:29]} 31. cxd5 {[%emt 0:00:22]} Rxc1 {[%emt 0:00:48]} 32. Bxc1 {[%emt 0:00:08]} Kh8 {[%emt 0:00:20]} 33. Bb2 {[%emt 0:01:46]} Qe7 {[%emt 0:01:37]} 34. d6 {[%emt 0:00:29]} Qh4 {[%emt 0:00:31]} 35. Qf3 {[%emt 0:00:25]} Qg5 $2 {[%emt 0:01:00]} (35... Nc5 36. a5 (36. Qxf5 Qxa4 37. Qf3 Qb5 $16) 36... Qc4 37. axb6 (37. Qxf5 Qb3 $18) 37... axb6 38. Qxf5 Qe2) 36. Ba3 {[%emt 0:02:34]} Qg6 {[%emt 0:00:15]} 37. d7 {[%emt 0:00:33]} Qe6 {[%emt 0:00:21]} 38. Qd3 {[%emt 0:06:08]} Qxe5 {[%emt 0:00:11]} 39. Rc1 {[%emt 0:01:28]} ({White should play} 39. Qc4 $11) 39... Nc5 {[%emt 0:00:46]} 40. Bxc5 {[%emt 0:00:46]} bxc5 {[%emt 0:00:10]} 41. Rd1 {[%emt 0:16:22]} f4 $11 {[%emt 0:00:00]} 42. Kh1 {[%emt 0:00:00]} Qe6 {[%emt 0:00:00]} 43. Qb5 {[%emt 0:00:00]} f3 {[%emt 0:00:27]} 44. Qxc5 {[%emt 0:00:00]} fxg2+ {[%emt 0:01:06]} 45. Kh2 {[%emt 0:00:00]} Qe2 {[%emt 0:00:28]} 46. Rg1 {[%emt 0:00:00]} Qe6 {[%emt 0:06:54]} 47. Rd1 {[%emt 0:00:00]} g1=Q+ {[%emt 0:03:12]} 48. Kxg1 {[%emt 0:00:00]} Qxh3 {[%emt 0:00:10]} 49. Qe7 {[%emt 0:00:00]} Qg3+ {[%emt 0:01:06]} 1/2-1/2

[Event "GER-ch Youth-U12 2024"]
[Site "Willingen"]
[Date "2024.05.22"]
[Round "5"]
[White "Stehning, Toni"]
[Black "Junge, Mattheo Gabriel"]
[Result "0-1"]
[ECO "B07"]
[WhiteElo "1821"]
[BlackElo "1817"]
[Annotator "NA RC"]
[PlyCount "104"]
[EventDate "2022.06.05"]
[EventType "swiss"]
[EventRounds "9"]
[EventCountry "GER"]
[SourceTitle "playchess.com"]
[Source "ChessBase"]
[SourceQuality "1"]
[TimeControl "40/4500+30:900+30"]

1. e4 {[%emt 0:00:00]} c6 {[%emt 0:00:00]} 2. Nc3 {[%emt 0:00:00]} g6 {[%emt 0:00:00]} 3. Bc4 {[%emt 0:00:00]} Bg7 {[%emt 0:00:00]} 4. d4 {[%emt 0:00:00]} d6 {[%emt 0:00:00]} 5. Nge2 {[%emt 0:00:00]} Nf6 {[%emt 0:00:00]} 6. Bg5 {[%emt 0:00:00]} O-O {[%emt 0:00:00]} 7. Qd2 {[%emt 0:00:00]} Nbd7 {[%emt 0:00:00]} 8. f4 {[%emt 0:01:28]} b5 {[%emt 0:02:51]} 9. Bd3 {[%emt 0:00:48]} h6 {[%emt 0:01:49]} 10. Bh4 {[%emt 0:01:32]} e5 {[%emt 0:02:27]} 11. Bxf6 {[%emt 0:05:30]} Qxf6 {[%emt 0:01:24]} 12. d5 {[%emt 0:04:56]} exf4 {[%emt 0:13:13]} 13. O-O {[%emt 0:08:51]} b4 {[%emt 0:05:32]} 14. Nd1 {[%emt 0:01:30]} cxd5 {[%emt 0:00:56]} 15. Rxf4 {[%emt 0:04:38]} Qe5 {[%emt 0:01:25]} 16. Qxb4 {[%emt 0:01:06]} Rb8 {[%emt 0:00:41]} 17. Qa3 {[%emt 0:10:18]} dxe4 {[%emt 0:00:16]} 18. Rxe4 {[%emt 0:01:46]} Qc5+ {[%emt 0:00:11]} 19. Qxc5 {[%emt 0:00:19]} Nxc5 {[%emt 0:00:04]} 20. Re7 {[%emt 0:00:42]} Bxb2 {[%emt 0:01:02]} 21. Nxb2 {[%emt 0:00:15]} Rxb2 {[%emt 0:00:04]} 22. Nc3 {[%emt 0:01:25]} Nxd3 {[%emt 0:05:34]} 23. cxd3 {[%emt 0:00:36]} Bf5 {[%emt 0:01:55]} 24. Rxa7 {[%emt 0:01:56]} Rfb8 {[%emt 0:07:19]} 25. Ne4 {[%emt 0:01:27]} Bxe4 {[%emt 0:00:15]} 26. dxe4 {[%emt 0:00:07]} Re2 {[%emt 0:00:07]} 27. Rf1 {[%emt 0:00:43]} Rbb2 {[%emt 0:03:14]} 28. Rfxf7 {[%emt 0:01:16]} Rxg2+ {[%emt 0:00:11]} 29. Kf1 {[%emt 0:00:03]} Rgc2 {[%emt 0:00:15]} 30. Kg1 {[%emt 0:01:57]} Rg2+ {[%emt 0:04:15]} 31. Kf1 {[%emt 0:00:11]} Rxh2 {[%emt 0:00:08]} 32. Kg1 {[%emt 0:00:46]} Rhg2+ {[%emt 0:04:26]} 33. Kh1 {[%emt 0:00:05]} Rh2+ {[%emt 0:08:49]} 34. Kg1 {[%emt 0:00:05]} Rbg2+ {[%emt 0:00:20]} 35. Kf1 {[%emt 0:00:12]} Rb2 {[%emt 0:00:10]} 36. Kg1 {[%emt 0:00:21]} Rhc2 {[%emt 0:00:37]} 37. a4 {[%emt 0:01:09]} Rc1+ {[%emt 0:01:42]} 38. Rf1 {[%emt 0:00:08]} Rxf1+ {[%emt 0:00:06]} 39. Kxf1 {[%emt 0:00:02]} Ra2 {[%emt 0:00:10]} 40. a5 {[%emt 0:00:14]} h5 {[%emt 0:00:28]} 41. a6 {[%emt 0:15:30]} h4 {[%emt 0:15:10]} 42. Ra8+ {[%emt 0:03:35]} Kg7 {[%emt 0:00:09]} 43. a7 {[%emt 0:00:08]} h3 {[%emt 0:00:26]} 44. Kg1 {[%emt 0:00:04]} g5 {[%emt 0:00:20]} 45. Rd8 {[%emt 0:01:40]} Rxa7 {[%emt 0:00:17]} 46. Rxd6 {[%emt 0:02:07]} g4 {[%emt 0:04:34]} 47. e5 {[%emt 0:04:59]} g3 {[%emt 0:00:29]} 48. Rd1 {[%emt 0:00:13]} Kg6 {[%emt 0:00:16]} 49. e6 {[%emt 0:00:36]} Kg5 {[%emt 0:00:08]} 50. Re1 {[%emt 0:00:12]} Kg4 {[%emt 0:03:46]} 51. Re4+ {[%emt 0:02:56]} Kf3 {[%emt 0:00:07]} 52. Re1 {[%emt 0:03:39]} h2+ {[%emt 0:00:16]} 0-1